fUST/lending_fUST_20260619
["ID","MTS","AMOUNT","RATE_DAILY","PERIOD"]
[425567525,1781814645000,-160.0,0.00020679,2]
[425567537,1781814645000,-164.98512404,0.000208,2]
[425567541,1781814645000,-166.35358549,0.000208,2]
[425567543,1781814645000,-158.87,0.0002086,2]
[425567531,1781814645000,-166.74799993,0.00020788,2]
[425567527,1781814645000,-160.0,0.00020685,2]
[425567533,1781814645000,-168.3888056,0.00020788,2]
[425567529,1781814645000,-2749.6823852,0.00020749,2]
[425567540,1781814645000,-165.30999158,0.000208,2]
[425567546,1781814645000,-500.0,0.0002086,2]
[425567547,1781814645000,-500.0,0.0002086,2]
[425567549,1781814645000,-500.0,0.0002086,2]
[425567555,1781814645000,-299.79,0.0002086,2]
[425567557,1781814645000,-500.0,0.0002086,2]
[425567523,1781814645000,-500.0,0.00020671,2]
[425567553,1781814645000,-568.55,0.0002086,2]
[425567569,1781814645000,-500.0,0.00021,2]
[425567560,1781814645000,-500.0,0.00020872,2]
[425567568,1781814645000,-3000.0,0.00021,2]
[425567558,1781814645000,-500.0,0.0002086,2]
[425567566,1781814645000,-220.050729,0.00020961,2]
[425567562,1781814645000,-500.0,0.00020945,2]
[425567567,1781814645000,-425.29346532,0.00020984,2]
[425567564,1781814645000,-211.93008127,0.00020958,2]
[425567570,1781814645000,-330.0,0.00021,2]
[425567572,1781814645000,-260.0,0.00021,2]
[425567573,1781814645000,-750.0,0.00021,2]
[425567571,1781814645000,-210.0,0.00021,2]
[425567574,1781814645000,-420.0,0.00021,2]
[425567457,1781814645000,-500.0,0.00020586,2]
[425567551,1781814645000,-500.0,0.0002086,2]
[425567535,1781814645000,-162.88929732,0.000208,2]
[425567521,1781814645000,-505.07060746,0.00020599,2]
[425567519,1781814645000,-560.83793117,0.00020599,2]
[425567463,1781814645000,-500.0,0.00020586,2]
[425567459,1781814645000,-500.0,0.00020586,2]
[425567461,1781814645000,-500.0,0.00020586,2]
[425567466,1781814645000,-200.0,0.00020586,2]
[425567467,1781814645000,-157.13420102,0.00020586,2]
[425567464,1781814645000,-519.88027305,0.00020586,2]
[425567465,1781814645000,-502.72095923,0.00020586,2]
[425567471,1781814645000,-503.52260196,0.00020586,2]
[425567482,1781814645000,-503.86716366,0.00020586,2]
[425567478,1781814645000,-500.0,0.00020586,2]
[425567476,1781814645000,-501.7050315,0.00020586,2]
[425567473,1781814645000,-500.0,0.00020586,2]
[425567483,1781814645000,-500.0,0.00020586,2]
[425567491,1781814645000,-506.0598569,0.00020597,2]
[425567480,1781814645000,-505.72663334,0.00020586,2]
[425567485,1781814645000,-500.0,0.00020597,2]
[425567487,1781814645000,-502.5124117,0.00020597,2]
[425567507,1781814645000,-605.459751,0.00020598,2]
[425567517,1781814645000,-500.0,0.00020599,2]
[425567499,1781814645000,-500.0,0.00020597,2]
[425567497,1781814645000,-507.26889783,0.00020597,2]
[425567501,1781814645000,-500.0,0.00020597,2]
[425567515,1781814645000,-500.0,0.00020599,2]
[425567503,1781814645000,-500.0,0.00020597,2]
[425567509,1781814645000,-500.0,0.00020599,2]
[425567511,1781814645000,-500.0,0.00020599,2]
[425567493,1781814645000,-500.0,0.00020597,2]
[425567489,1781814645000,-511.73264484,0.00020597,2]
[425567495,1781814645000,-206.75242698,0.00020597,2]
[425567513,1781814645000,-500.0,0.00020599,2]
[425567588,1781814646000,-3000.0,0.0002104,2]
[425567600,1781814646000,-3000.0,0.0002107,2]
[425567602,1781814646000,-5987.66769,0.0002108,2]
[425567604,1781814646000,-1319.009926,0.00021096,2]
[425567605,1781814646000,-172.0,0.00021101,2]
[425567611,1781814646000,-1004.0,0.00021101,2]
[425567607,1781814646000,-1004.0,0.00021101,2]
[425567623,1781814646000,-1004.0,0.00021101,2]
[425567616,1781814646000,-1004.0,0.00021101,2]
[425567620,1781814646000,-1004.0,0.00021101,2]
[425567621,1781814646000,-1004.0,0.00021101,2]
[425567613,1781814646000,-1004.0,0.00021101,2]
[425567615,1781814646000,-1004.0,0.00021101,2]
[425567609,1781814646000,-1004.0,0.00021101,2]
[425567591,1781814646000,-3000.0,0.0002105,2]
[425567575,1781814646000,-260.0,0.00021,2]
[425567590,1781814646000,-1467.305358,0.00021041,2]
[425567625,1781814646000,-1004.0,0.00021101,2]
[425567582,1781814646000,-318.50595226,0.00021001,2]
[425567578,1781814646000,-624.60090902,0.00021001,2]
[425567583,1781814646000,-3000.0,0.0002101,2]
[425567576,1781814646000,-4384.975087,0.00021001,2]
[425567579,1781814646000,-206.76200326,0.00021001,2]
[425567598,1781814646000,-4587.350304,0.00021062,2]
[425567580,1781814646000,-278.69270823,0.00021001,2]
[425567577,1781814646000,-347.00050501,0.00021001,2]
[425567595,1781814646000,-151.0,0.0002105,2]
[425567584,1781814646000,-3000.0,0.0002102,2]
[425567586,1781814646000,-3000.0,0.0002103,2]
[425567593,1781814646000,-151.0,0.0002105,2]
[425567597,1781814646000,-3000.0,0.0002106,2]
[425567581,1781814646000,-1110.40161604,0.00021001,2]
[425567627,1781814646000,-1004.0,0.00021101,2]
[425567618,1781814646000,-1004.0,0.00021101,2]
[425567630,1781814646000,-1004.0,0.00021101,2]
[425567629,1781814646000,-1004.0,0.00021101,2]
[425567662,1781814646000,-605.459751,0.0002134,2]
[425567664,1781814646000,-151.0,0.000214,3]
[425567671,1781814646000,-796.88494432,0.000214,2]
[425567677,1781814646000,-500.0,0.00021408,2]
[425567673,1781814646000,-151.0,0.00021406,2]
[425567655,1781814646000,-2983.66038918,0.00021306,2]
[425567668,1781814646000,-151.0,0.000214,4]
[425567666,1781814646000,-151.0,0.000214,4]
[425567669,1781814646000,-177.052816,0.000214,5]
[425567679,1781814646000,-644434.95941865,0.00021431,2]
[425567682,1781814646000,-19750.93082132,0.00021431,2]
[425567684,1781814646000,-1700.44,0.00021431,2]
[425567706,1781814646000,-1905.45032284,0.00021431,2]
[425567675,1781814646000,-151.0,0.00021406,2]
[425567660,1781814646000,-174.61919141,0.00021336,2]
[425567656,1781814646000,-160.0,0.0002132,2]
[425567658,1781814646000,-166.74799994,0.00021336,2]
[425567636,1781814646000,-215.42,0.00021134,2]
[425567632,1781814646000,-770.77884458,0.00021101,2]
[425567634,1781814646000,-457.97,0.00021134,2]
[425567640,1781814646000,-500.0,0.00021134,2]
[425567653,1781814646000,-1000.0,0.000213,2]
[425567704,1781814646000,-90530.20512424,0.00021431,2]
[425567650,1781814646000,-277.81,0.00021244,2]
[425567638,1781814646000,-169.86,0.00021134,2]
[425567645,1781814646000,-235.3,0.00021181,2]
[425567649,1781814646000,-500.0,0.00021219,2]
[425567643,1781814646000,-500.0,0.00021134,2]
[425567642,1781814646000,-500.0,0.00021134,2]
[425567646,1781814646000,-200.0,0.0002119,2]
[425567648,1781814646000,-797.0,0.000212,2]
[425567652,1781814646000,-210.0,0.00021288,3]
[425569390,1781814685000,210.99829752,0.00013133,2]
[425569392,1781814708000,-500.0,0.00017377,2]
[425569396,1781814787000,118015.917729,0.00024658,120]
[425569424,1781815832000,-152.0,0.00015809,7]
[425569425,1781815832000,-618.0179227,0.0001604,2]
[425569426,1781815832000,-910.9818615,0.00016086,2]
[425569428,1781815832000,-177.705034,0.0001645,2]
[425569429,1781815832000,-300.0,0.00017197,2]
[425569427,1781815832000,-231.322208,0.00016132,2]
[425569430,1781815832000,-329.29282639,0.00017198,2]
[425569533,1781815840000,-500.0,0.00017723,2]
[425569515,1781815840000,-500.0,0.00017721,2]
[425569520,1781815840000,-500.0,0.00017721,2]
[425569522,1781815840000,-500.0,0.00017721,2]
[425569523,1781815840000,-500.0,0.00017721,2]
[425569521,1781815840000,-554.83509804,0.00017721,2]
[425569525,1781815840000,-500.0,0.00017721,2]
[425569532,1781815840000,-500.0,0.00017723,2]
[425569529,1781815840000,-500.0,0.00017721,2]
[425569526,1781815840000,-500.0,0.00017721,2]
[425569531,1781815840000,-500.0,0.00017723,2]
[425569528,1781815840000,-500.0,0.00017721,2]
[425569527,1781815840000,-500.0,0.00017721,2]
[425569530,1781815840000,-500.0,0.00017723,2]
[425569513,1781815840000,-500.0,0.00017721,2]
[425569524,1781815840000,-601.08520425,0.00017721,2]
[425569514,1781815840000,-500.0,0.00017721,2]
[425569517,1781815840000,-500.0,0.00017721,2]
[425569534,1781815840000,-500.0,0.00017723,2]
[425569502,1781815840000,-8507.17017121,0.00017198,2]
[425569504,1781815840000,-171.0,0.00017339,2]
[425569505,1781815840000,-500.0,0.00017378,2]
[425569503,1781815840000,-2876.5433224,0.00017333,2]
[425569506,1781815840000,-500.0,0.00017378,2]
[425569516,1781815840000,-500.0,0.00017721,2]
[425569508,1781815840000,-500.0,0.00017426,2]
[425569519,1781815840000,-500.0,0.00017721,2]
[425569510,1781815840000,-183.72705261,0.00017585,2]
[425569509,1781815840000,-9069.2349697,0.00017427,2]
[425569507,1781815840000,-500.0,0.00017426,2]
[425569511,1781815840000,-500.0,0.00017652,2]
[425569512,1781815840000,-500.0,0.00017721,2]
[425569518,1781815840000,-500.0,0.00017721,2]
[425569535,1781815840000,-500.0,0.00017723,2]
[425569540,1781815840000,-300.0,0.00017724,2]
[425569537,1781815840000,-300.0,0.00017724,2]
[425569557,1781815840000,-3630.1826661,0.00018158,2]
[425569556,1781815840000,-161.6377475,0.00018129,2]
[425569558,1781815840000,-242.32425241,0.00018418,2]
[425569561,1781815840000,-160.0,0.00018875,2]
[425569564,1781815840000,-500.0,0.00018898,2]
[425569563,1781815840000,-160.0,0.00018875,2]
[425569551,1781815840000,-300.0,0.00017724,2]
[425569565,1781815840000,-505.0,0.00018898,2]
[425569568,1781815840000,-500.0,0.00018898,2]
[425569567,1781815840000,-412.18,0.00018898,2]
[425569566,1781815840000,-500.0,0.00018898,2]
[425569569,1781815840000,-500.0,0.00018898,2]
[425569571,1781815840000,-1051.13735748,0.000189,2]
[425569572,1781815840000,-1733.26752254,0.00019043,2]
[425569570,1781815840000,-500.0,0.00018898,2]
[425569559,1781815840000,-420.0,0.00018779,2]
[425569539,1781815840000,-300.0,0.00017724,2]
[425569555,1781815840000,-500.0,0.00017997,2]
[425569536,1781815840000,-500.0,0.00017723,2]
[425569573,1781815840000,-497.16788485,0.00019043,2]
[425569538,1781815840000,-300.0,0.00017724,2]
[425569546,1781815840000,-300.0,0.00017724,2]
[425569554,1781815840000,-152.0,0.00017944,7]
[425569541,1781815840000,-300.0,0.00017724,2]
[425569545,1781815840000,-300.0,0.00017724,2]
[425569542,1781815840000,-300.0,0.00017724,2]
[425569544,1781815840000,-300.0,0.00017724,2]
[425569547,1781815840000,-300.0,0.00017724,2]
[425569548,1781815840000,-300.0,0.00017724,2]
[425569550,1781815840000,-300.0,0.00017724,2]
[425569552,1781815840000,-159.4920842,0.00017808,2]
[425569553,1781815840000,-500.0,0.00017926,2]
[425569549,1781815840000,-300.0,0.00017724,2]
[425569543,1781815840000,-300.0,0.00017724,2]
[425569591,1781815841000,-162.380719,0.00020179,2]
[425569593,1781815841000,-1051.13735748,0.000202,2]
[425569595,1781815841000,-1418.0,0.00020351,2]
[425569592,1781815841000,-168.13232278,0.00020179,2]
[425569594,1781815841000,-505.91000001,0.00020267,2]
[425569598,1781815841000,-272.05485232,0.00020499,2]
[425569610,1781815841000,-500.0,0.0002093,2]
[425569596,1781815841000,-186.0,0.00020351,2]
[425569601,1781815841000,-168.3888056,0.00020727,2]
[425569602,1781815841000,-600.0,0.00020757,2]
[425569603,1781815841000,-500.0,0.0002093,2]
[425569604,1781815841000,-293.7164846,0.0002093,2]
[425569606,1781815841000,-500.0,0.0002093,2]
[425569597,1781815841000,-1051.13735748,0.000204,2]
[425569588,1781815841000,-1051.13735748,0.000198,2]
[425569590,1781815841000,-1051.13735748,0.0002,2]
[425569585,1781815841000,-500.0,0.00019445,2]
[425569599,1781815841000,-162.0,0.000205,10]
[425569608,1781815841000,-500.0,0.0002093,2]
[425569575,1781815841000,-1371.18673536,0.00019101,2]
[425569577,1781815841000,-500.19,0.00019171,2]
[425569578,1781815841000,-500.0,0.00019171,2]
[425569576,1781815841000,-161.148,0.00019171,2]
[425569580,1781815841000,-500.0,0.00019171,2]
[425569600,1781815841000,-1051.13735748,0.000206,2]
[425569582,1781815841000,-156.12757092,0.00019288,2]
[425569583,1781815841000,-1051.13735748,0.000193,2]
[425569584,1781815841000,-1051.13735748,0.000194,2]
[425569586,1781815841000,-1051.13735748,0.000196,2]
[425569581,1781815841000,-500.0,0.00019171,2]
[425569587,1781815841000,-500.0,0.00019719,2]
[425569589,1781815841000,-500.0,0.00019993,2]
[425569579,1781815841000,-500.0,0.00019171,2]
[425569574,1781815841000,-1051.13735748,0.000191,2]
[425569607,1781815841000,-500.0,0.0002093,2]
[425569612,1781815841000,-500.0,0.0002093,2]
[425569642,1781815841000,-326.05695513,0.00021419,2]
[425569634,1781815841000,-174.61919141,0.00021275,2]
[425569629,1781815841000,-180.0,0.000211,2]
[425569639,1781815841000,-1134.55433,0.0002141,2]
[425569636,1781815841000,-160.0,0.00021353,3]
[425569637,1781815841000,-160.0,0.0002141,2]
[425569633,1781815841000,-475.449457,0.00021164,2]
[425569635,1781815841000,-796.0,0.000213,2]
[425569630,1781815841000,-190.0,0.000211,2]
[425569631,1781815841000,-160.0,0.00021164,2]
[425569640,1781815841000,-116161.42001053,0.00021419,2]
[425569638,1781815841000,-647.277165,0.0002141,2]
[425569632,1781815841000,-317.724728,0.00021164,2]
[425569628,1781815841000,-200.0,0.000211,2]
[425569627,1781815841000,-250.0,0.000211,2]
[425569624,1781815841000,-372.17160587,0.000211,2]
[425569623,1781815841000,-422.691654,0.00020931,2]
[425569611,1781815841000,-334.19913989,0.0002093,2]
[425569613,1781815841000,-500.0,0.0002093,2]
[425569609,1781815841000,-500.0,0.0002093,2]
[425569614,1781815841000,-350.0,0.0002093,2]
[425569615,1781815841000,-500.0,0.0002093,2]
[425569619,1781815841000,-339.711215,0.00020931,2]
[425569641,1781815841000,-673.94304487,0.00021419,2]
[425569620,1781815841000,-160.0,0.00020931,2]
[425569618,1781815841000,-366.582412,0.00020931,2]
[425569626,1781815841000,-162.0,0.000211,14]
[425569617,1781815841000,-263.291206,0.00020931,2]
[425569621,1781815841000,-276.858707,0.00020931,2]
[425569622,1781815841000,-393.717414,0.00020931,2]
[425569625,1781815841000,-661.63841044,0.000211,2]
[425569616,1781815841000,-160.0,0.00020931,2]
[425569605,1781815841000,-500.0,0.0002093,2]
[425569651,1781815846000,-436.47710674,0.00021419,2]
[425569650,1781815846000,-4457.19425039,0.00021419,2]
[425569675,1781816253000,3777.46304088,7.6e-05,2]
[425569681,1781816416000,540.9395302,0.00023425,120]
[425569843,1781817039000,-500.0,0.00011999,2]
[425569845,1781817039000,-354.38000428,0.00011999,2]
[425569837,1781817039000,-500.0,0.00011999,2]
[425569839,1781817039000,-285.57143569,0.00011999,2]
[425569847,1781817039000,-500.0,0.00011999,2]
[425569854,1781817039000,-500.0,0.00011999,2]
[425569856,1781817039000,-253.34598534,0.00011999,2]
[425569852,1781817039000,-500.0,0.00011999,2]
[425569850,1781817039000,-500.0,0.00011999,2]
[425569848,1781817039000,-500.0,0.00011999,2]
[425569826,1781817039000,-460.10852043,0.00011999,2]
[425569823,1781817039000,-500.0,0.00011999,2]
[425569830,1781817039000,-500.0,0.00011999,2]
[425569824,1781817039000,-500.0,0.00011999,2]
[425569833,1781817039000,-500.0,0.00011999,2]
[425569832,1781817039000,-500.0,0.00011999,2]
[425569828,1781817039000,-500.0,0.00011999,2]
[425569817,1781817039000,-500.0,0.00011999,2]
[425569819,1781817039000,-500.0,0.00011999,2]
[425569812,1781817039000,-500.0,0.00011999,2]
[425569815,1781817039000,-500.0,0.00011999,2]
[425569806,1781817039000,-5644.0208659,0.00011488,2]
[425569813,1781817039000,-500.0,0.00011999,2]
[425569802,1781817039000,-300.0,0.00011487,2]
[425569808,1781817039000,-156.0,0.000119,2]
[425569804,1781817039000,-220.7516434,0.00011488,2]
[425569841,1781817039000,-500.0,0.00011999,2]
[425569835,1781817039000,-500.0,0.00011999,2]
[425569857,1781817039000,-500.0,0.00011999,2]
[425569821,1781817039000,-500.0,0.00011999,2]
[425569861,1781817039000,-500.0,0.00011999,2]
[425569910,1781817039000,-10437.28438107,0.00012,2]
[425569908,1781817039000,-300.0,0.00011999,2]
[425569906,1781817039000,-500.0,0.00011999,2]
[425569902,1781817039000,-500.0,0.00011999,2]
[425569904,1781817039000,-500.0,0.00011999,2]
[425569919,1781817039000,-2534.01300633,0.00012,2]
[425569915,1781817039000,-747.69114452,0.00012,2]
[425569916,1781817039000,-43748.12847055,0.00012,2]
[425569897,1781817039000,-500.0,0.00011999,2]
[425569895,1781817039000,-500.0,0.00011999,2]
[425569899,1781817039000,-500.0,0.00011999,2]
[425569912,1781817039000,-35387.70465493,0.00012,2]
[425569901,1781817039000,-195.6684341,0.00011999,2]
[425569887,1781817039000,-500.0,0.00011999,2]
[425569859,1781817039000,-500.0,0.00011999,2]
[425569889,1781817039000,-500.0,0.00011999,2]
[425569863,1781817039000,-500.0,0.00011999,2]
[425569868,1781817039000,-500.0,0.00011999,2]
[425569865,1781817039000,-500.0,0.00011999,2]
[425569891,1781817039000,-500.0,0.00011999,2]
[425569874,1781817039000,-500.0,0.00011999,2]
[425569878,1781817039000,-500.0,0.00011999,2]
[425569871,1781817039000,-500.0,0.00011999,2]
[425569880,1781817039000,-500.0,0.00011999,2]
[425569881,1781817039000,-500.0,0.00011999,2]
[425569883,1781817039000,-500.0,0.00011999,2]
[425569886,1781817039000,-500.0,0.00011999,2]
[425569893,1781817039000,-500.0,0.00011999,2]
[425569876,1781817039000,-500.0,0.00011999,2]
[425569956,1781817040000,-162.63484789,0.00013365,14]
[425569958,1781817040000,-720.0,0.00013463,2]
[425569960,1781817040000,-500.0,0.00013698,2]
[425569954,1781817040000,-162.63484789,0.00012983,7]
[425569950,1781817040000,-600.0,0.00012239,2]
[425569967,1781817040000,-1626.71227339,0.00013741,2]
[425569964,1781817040000,-500.0,0.00013698,2]
[425569965,1781817040000,-181.706844,0.00013699,2]
[425569978,1781817040000,-1000.0,0.0001629,2]
[425569980,1781817040000,-1626.71227339,0.00016945,2]
[425569982,1781817040000,-570.87990805,0.00017098,2]
[425569952,1781817040000,-162.63484789,0.00012729,2]
[425569962,1781817040000,-500.0,0.00013698,2]
[425569949,1781817040000,-300.0,0.00012239,2]
[425569935,1781817040000,-300.0,0.00012239,2]
[425569941,1781817040000,-300.0,0.00012239,2]
[425569934,1781817040000,-300.0,0.00012239,2]
[425569943,1781817040000,-300.0,0.00012239,2]
[425569939,1781817040000,-300.0,0.00012239,2]
[425569937,1781817040000,-300.0,0.00012239,2]
[425569932,1781817040000,-300.0,0.00012239,2]
[425569930,1781817040000,-300.0,0.00012239,2]
[425569924,1781817040000,-300.0,0.00012239,2]
[425569928,1781817040000,-300.0,0.00012239,2]
[425569926,1781817040000,-300.0,0.00012239,2]
[425569922,1781817040000,-300.0,0.00012239,2]
[425569921,1781817040000,-1626.71227345,0.00012139,2]
[425569969,1781817040000,-210.99829752,0.00014065,2]
[425569945,1781817040000,-300.0,0.00012239,2]
[425569984,1781817040000,-1000.0,0.00017919,2]
[425569947,1781817040000,-300.0,0.00012239,2]
[425569986,1781817040000,-244.0,0.00017919,2]
[425569975,1781817040000,-1626.71227339,0.00015343,2]
[425570034,1781817040000,-160.0,0.00021415,2]
[425570032,1781817040000,-160.0,0.00021415,2]
[425570030,1781817040000,-151.0,0.00021319,2]
[425570027,1781817040000,-273.87019607,0.00021148,2]
[425570019,1781817040000,-900.0,0.00020596,2]
[425570029,1781817040000,-151.0,0.00021319,2]
[425570021,1781817040000,-209.46104039,0.0002075,2]
[425570023,1781817040000,-180.0,0.00021,2]
[425570025,1781817040000,-355.22789076,0.00021101,2]
[425570018,1781817040000,-188.39,0.00020439,2]
[425570014,1781817040000,-151.0,0.00020359,2]
[425570012,1781817040000,-223600.06436236,0.00020359,2]
[425570008,1781817040000,-186.0,0.00020351,2]
[425570036,1781817040000,-361511.75051113,0.0002144,2]
[425570016,1781817040000,-151.0,0.00020359,2]
[425570003,1781817040000,-1626.71227339,0.00020148,2]
[425569971,1781817040000,-864.0,0.00014809,2]
[425569973,1781817040000,-359.25731995,0.00015,2]
[425570006,1781817040000,-576.21868928,0.00020332,5]
[425569988,1781817040000,-15090.57908489,0.00018,2]
[425569989,1781817040000,-1626.71227339,0.00018546,2]
[425569991,1781817040000,-258.96610688,0.00019,2]
[425569997,1781817040000,-1000.0,0.00019711,2]
[425569977,1781817040000,-250.0,0.00015355,2]
[425569999,1781817040000,-492.0,0.00019711,2]
[425569995,1781817040000,-377.26441996,0.00019044,2]
[425570004,1781817040000,-162.380719,0.00020202,2]
[425570001,1781817040000,-401879.39577089,0.0002,2]
[425569993,1781817040000,-1032.7762063,0.00019044,2]
[425570010,1781817040000,-445.0,0.00020351,2]
[425570242,1781817046000,-123.23875803,0.0002144,2]
[425570241,1781817046000,-366.86762537,0.00021011,2]
[425570243,1781817046000,-552.70531965,0.0002144,2]
[425570445,1781818233000,-160.0,0.00020334,2]
[425570444,1781818233000,-223.649036,0.0001979,2]
[425570439,1781818233000,-500.0,0.00018985,2]
[425570440,1781818233000,-278.39158664,0.00018985,2]
[425570441,1781818233000,-207.17288549,0.00019,2]
[425570447,1781818233000,-1000.0,0.0002034,5]
[425570443,1781818233000,-7476.2426719,0.0001976,2]
[425570446,1781818233000,-300.0,0.00020334,2]
[425570442,1781818233000,-355.985582,0.00019677,2]
[425570448,1781818233000,-445.0,0.00020505,2]
[425570451,1781818233000,-220.6087397,0.00020653,2]
[425570449,1781818233000,-186.0,0.00020505,2]
[425570452,1781818233000,-232.24,0.00020863,2]
[425570453,1781818233000,-286.2355109,0.00021011,2]
[425570456,1781818233000,-59.23271198,0.00021139,2]
[425570455,1781818233000,-206.62168445,0.00021101,2]
[425570454,1781818233000,-197.43637798,0.00021101,2]
[425570450,1781818233000,-360.0,0.00020586,2]
[425570483,1781818238000,-310.18760234,0.00021139,2]
[425570482,1781818238000,-500.0,0.00021139,2]
[425570480,1781818238000,-500.0,0.00021139,2]
[425570478,1781818238000,-500.0,0.00021139,2]
[425570476,1781818238000,-185.38255827,0.00021139,2]
[425570474,1781818238000,-500.0,0.00021139,2]
[425570471,1781818238000,-500.0,0.00021139,2]
[425570473,1781818238000,-259.47188218,0.00021139,2]
[425570470,1781818238000,-443.6782292,0.00021139,2]
[425570468,1781818238000,-238.80363332,0.00021139,2]
[425570469,1781818238000,-500.0,0.00021139,2]
[425570472,1781818238000,-240.52811782,0.00021139,2]
[425570467,1781818238000,-152.0,0.00016217,7]
[425570475,1781818238000,-500.0,0.00021139,2]
[425570477,1781818238000,-500.0,0.00021139,2]
[425570479,1781818238000,-500.0,0.00021139,2]
[425570485,1781818238000,-500.0,0.00021139,2]
[425570497,1781818238000,-176564.59369502,0.0002114,2]
[425570498,1781818238000,-73342.04559471,0.0002114,2]
[425570481,1781818238000,-500.0,0.00021139,2]
[425570494,1781818238000,-32701.70393453,0.0002114,2]
[425570492,1781818238000,-500.0,0.00021139,2]
[425570496,1781818238000,-1476.87857012,0.0002114,2]
[425570491,1781818238000,-500.0,0.00021139,2]
[425570495,1781818238000,-17708.73550522,0.0002114,2]
[425570493,1781818238000,-500.0,0.00021139,2]
[425570489,1781818238000,-500.0,0.00021139,2]
[425570484,1781818238000,-500.0,0.00021139,2]
[425570487,1781818238000,-500.0,0.00021139,2]
[425570488,1781818238000,-500.0,0.00021139,2]
[425570486,1781818238000,-500.0,0.00021139,2]
[425570490,1781818238000,-500.0,0.00021139,2]
[425570501,1781818240000,-796.79517445,0.0002114,2]
[425570500,1781818240000,-1812.2603764,0.0002114,2]
[425570502,1781818243000,-12885.20645343,0.0002114,2]
[425570504,1781818243000,-54907.43701433,0.0002114,2]
[425570506,1781818243000,-1990.70963771,0.0002114,2]
[425570503,1781818243000,-452.0,0.0002114,2]
[425570505,1781818243000,-2512.25604105,0.0002114,2]
[425570509,1781818245000,-3846.17826435,0.0002114,2]
[425570510,1781818246000,-1565.81672411,0.0002114,2]
[425570512,1781818246000,-355.3,0.0002114,2]
[425570511,1781818246000,-1347.37259244,0.0002114,2]
[425570513,1781818246000,-62308.94328927,0.0002114,2]
[425570514,1781818246000,-6579.00954959,0.0002114,2]
[425570515,1781818246000,-1247.21235212,0.0002114,2]
[425574738,1781819432000,-478.90973359,0.00020939,2]
[425574724,1781819432000,-160.0,0.00019902,3]
[425574723,1781819432000,-416.7546398,0.00019817,2]
[425574725,1781819432000,-267.333487,0.00019906,2]
[425574727,1781819432000,-215.14212356,0.00020411,3]
[425574726,1781819432000,-1000.0,0.00020343,5]
[425574730,1781819432000,-152.61294769,0.000209,2]
[425574729,1781819432000,-186.0,0.00020482,2]
[425574731,1781819432000,-500.0,0.00020939,2]
[425574732,1781819432000,-208.62544171,0.00020939,2]
[425574733,1781819432000,-260.57476044,0.00020939,2]
[425574734,1781819432000,-500.0,0.00020939,2]
[425574736,1781819432000,-353.93139536,0.00020939,2]
[425574737,1781819432000,-464.93763181,0.0002094,2]
[425574735,1781819432000,-500.0,0.00020939,2]
[425574739,1781819432000,-16680.44316641,0.0002094,2]
[425574728,1781819432000,-445.0,0.00020482,2]
[425574856,1781819438000,-500.0,0.00020939,2]
[425574864,1781819438000,-1965.83825098,0.0002094,2]
[425574858,1781819438000,-500.0,0.00020939,2]
[425574860,1781819438000,-1536.51378436,0.0002094,2]
[425574880,1781819438000,-13185.67286058,0.0002094,2]
[425574887,1781819438000,-35394.1405313,0.0002094,2]
[425574882,1781819438000,-28637.83788076,0.0002094,2]
[425574884,1781819438000,-4189.45215023,0.0002094,2]